[Event "Queens Festival Europe 2022"]
[Site "Tornelo"]
[Date "2022.06.19"]
[Round "7.6"]
[White "van den Brink, Nienke"]
[Black "Frundina, Yelyzaveta"]
[Result "1-0"]
[ECO "B90"]
[WhiteElo "1771"]
[BlackElo "1624"]
[Annotator "NA RC"]
[PlyCount "47"]
[EventDate "2022.06.19"]
[EventType "swiss"]
[EventCountry "NET"]
[SourceTitle "playchess.com"]
[Source "ChessBase"]
[SourceQuality "1"]
[TimeControl "180+2"]

1. e4 {[%emt 0:00:02]} c5 {[%emt 0:00:05]} 2. Nf3 {[%emt 0:00:02]} d6 {[%emt 0:00:01]} 3. d4 {[%emt 0:00:02]} cxd4 {[%emt 0:00:02]} 4. Nxd4 {[%emt 0:00:01]} Nf6 {[%emt 0:00:02]} 5. Nc3 {[%emt 0:00:02]} a6 {[%emt 0:00:01]} 6. f3 {[%emt 0:00:01]} e5 {[%emt 0:00:02]} 7. Nb3 {[%emt 0:00:02]} Be6 {[%emt 0:00:05]} 8. Be3 {[%emt 0:00:02]} b5 {[%emt 0:00:09]} 9. Qd2 {[%emt 0:00:08]} Nbd7 {[%emt 0:00:15]} 10. O-O-O {[%emt 0:00:03]} Be7 {[%emt 0:00:10]} 11. g4 {[%emt 0:00:04]} h6 {[%emt 0:00:17]} 12. h4 {[%emt 0:00:08]} Nb6 {[%emt 0:00:58]} 13. Qf2 {[%emt 0:00:20]} Nc4 {[%emt 0:00:09]} 14. Bxc4 {[%emt 0:00:06]} Bxc4 {[%emt 0:00:14]} 15. g5 {[%emt 0:00:04]} hxg5 {[%emt 0:00:09]} 16. hxg5 {[%emt 0:00:03]} Rxh1 {[%emt 0:00:10]} 17. Rxh1 {[%emt 0:00:02]} Ng8 {[%emt 0:00:06]} 18. Rh8 {[%emt 0:00:11]} Kd7 {[%emt 0:00:33]} 19. Qd2 {[%emt 0:00:11]} Qc7 {[%emt 0:00:07]} 20. Nd5 {[%emt 0:00:17]} Qc6 {[%emt 0:00:04]} 21. Nxe7 {[%emt 0:00:06]} Kxe7 {[%emt 0:00:01]} 22. Rh1 {[%emt 0:00:10]} Rc8 {[%emt 0:00:03]} 23. Rd1 {[%emt 0:00:03]} Bxb3 {[%emt 0:00:02]} 24. axb3 {[%emt 0:00:03]} 1-0

[Event "Queens Festival Europe 2022"]
[Site "Tornelo"]
[Date "2022.06.19"]
[Round "7.6"]
[White "Bakhshizada, Asnad"]
[Black "Strnadova, Monika"]
[Result "1-0"]
[ECO "E91"]
[WhiteElo "1052"]
[BlackElo "1518"]
[Annotator "NA RC"]
[PlyCount "133"]
[EventDate "2022.06.19"]
[EventType "swiss"]
[EventCountry "NET"]
[SourceTitle "playchess.com"]
[Source "ChessBase"]
[SourceQuality "1"]
[TimeControl "180+2"]

1. d4 {[%emt 0:00:02]} Nf6 {[%emt 0:00:05]} 2. c4 {[%emt 0:00:03]} g6 {[%emt 0:00:02]} 3. Nc3 {[%emt 0:00:03]} Bg7 {[%emt 0:00:01]} 4. e4 {[%emt 0:00:02]} d6 {[%emt 0:00:02]} 5. Nf3 {[%emt 0:00:02]} Nc6 {[%emt 0:00:01]} 6. Be2 {[%emt 0:00:09]} O-O {[%emt 0:00:02]} 7. O-O {[%emt 0:00:03]} Bg4 {[%emt 0:00:02]} 8. h3 {[%emt 0:00:02]} Bxf3 {[%emt 0:00:02]} 9. Bxf3 {[%emt 0:00:01]} Nd7 {[%emt 0:00:02]} 10. Be3 {[%emt 0:00:05]} Re8 {[%emt 0:00:04]} 11. Rc1 {[%emt 0:00:05]} a6 {[%emt 0:00:02]} 12. a4 {[%emt 0:00:04]} Nb6 {[%emt 0:00:09]} 13. b3 {[%emt 0:00:13]} e6 {[%emt 0:00:10]} 14. Qd2 {[%emt 0:00:09]} Qf6 {[%emt 0:00:05]} 15. Rfd1 {[%emt 0:00:05]} Rad8 {[%emt 0:00:11]} 16. Bg5 {[%emt 0:00:06]} Qxd4 {[%emt 0:00:07]} 17. Bxd8 {[%emt 0:00:10]} Qxd2 {[%emt 0:00:14]} 18. Rxd2 {[%emt 0:00:01]} Bh6 {[%emt 0:00:20]} 19. Bxc7 {[%emt 0:00:06]} Bxd2 {[%emt 0:00:02]} 20. Rc2 {[%emt 0:00:02]} Bxc3 {[%emt 0:00:06]} 21. Rxc3 {[%emt 0:00:03]} Nc8 {[%emt 0:00:06]} 22. Rd3 {[%emt 0:00:07]} Ne5 {[%emt 0:00:04]} 23. Rd1 {[%emt 0:00:07]} Nxf3+ {[%emt 0:00:04]} 24. gxf3 {[%emt 0:00:02]} Re7 {[%emt 0:00:15]} 25. Bxd6 {[%emt 0:00:13]} Rd7 {[%emt 0:00:02]} 26. e5 {[%emt 0:00:03]} f6 {[%emt 0:00:02]} 27. f4 {[%emt 0:00:08]} g5 {[%emt 0:00:01]} 28. Rd2 {[%emt 0:00:18]} gxf4 {[%emt 0:00:05]} 29. Bb4 {[%emt 0:00:13]} Rxd2 {[%emt 0:00:02]} 30. Bxd2 {[%emt 0:00:02]} fxe5 {[%emt 0:00:02]} 31. Bc3 {[%emt 0:00:02]} Ne7 {[%emt 0:00:09]} 32. Bxe5 {[%emt 0:00:08]} Ng6 {[%emt 0:00:01]} 33. Bb8 {[%emt 0:00:04]} Kf7 {[%emt 0:00:04]} 34. b4 {[%emt 0:00:02]} Ke7 {[%emt 0:00:03]} 35. c5 {[%emt 0:00:06]} Kd7 {[%emt 0:00:02]} 36. Kg2 {[%emt 0:00:13]} Kc6 {[%emt 0:00:03]} 37. Kf3 {[%emt 0:00:08]} a5 {[%emt 0:00:04]} 38. bxa5 {[%emt 0:00:19]} Kxc5 {[%emt 0:00:04]} 39. Bxf4 {[%emt 0:00:16]} Nxf4 {[%emt 0:00:03]} 40. Kxf4 {[%emt 0:00:02]} Kb4 {[%emt 0:00:02]} 41. Ke5 {[%emt 0:00:03]} Kxa5 {[%emt 0:00:02]} 42. f4 {[%emt 0:00:02]} Kxa4 {[%emt 0:00:02]} 43. Kxe6 {[%emt 0:00:02]} b5 {[%emt 0:00:01]} 44. f5 {[%emt 0:00:01]} b4 {[%emt 0:00:02]} 45. f6 {[%emt 0:00:02]} b3 {[%emt 0:00:01]} 46. f7 {[%emt 0:00:01]} b2 {[%emt 0:00:04]} 47. f8=Q {[%emt 0:00:03]} b1=Q {[%emt 0:00:02]} 48. Qa8+ {[%emt 0:00:02]} Kb3 {[%emt 0:00:01]} 49. Qb7+ {[%emt 0:00:03]} Kc2 {[%emt 0:00:02]} 50. Qxb1+ {[%emt 0:00:02]} Kxb1 {[%emt 0:00:01]} 51. Kf6 {[%emt 0:00:01]} Kc2 {[%emt 0:00:01]} 52. h4 {[%emt 0:00:06]} Kd3 {[%emt 0:00:01]} 53. h5 {[%emt 0:00:01]} Ke4 {[%emt 0:00:02]} 54. h6 {[%emt 0:00:03]} Kf4 {[%emt 0:00:07]} 55. Kg7 {[%emt 0:00:01]} Kf5 {[%emt 0:00:01]} 56. Kxh7 {[%emt 0:00:02]} Kf6 {[%emt 0:00:01]} 57. Kg8 {[%emt 0:00:02]} Kg6 {[%emt 0:00:06]} 58. h7 {[%emt 0:00:01]} Kg5 {[%emt 0:00:01]} 59. h8=Q {[%emt 0:00:03]} Kf5 {[%emt 0:00:02]} 60. Kf7 {[%emt 0:00:02]} Kg5 {[%emt 0:00:02]} 61. Qf6+ {[%emt 0:00:02]} Kg4 {[%emt 0:00:01]} 62. Ke6 {[%emt 0:00:01]} Kh5 {[%emt 0:00:02]} 63. Qf5+ {[%emt 0:00:02]} Kh6 {[%emt 0:00:02]} 64. Qf4+ {[%emt 0:00:02]} Kh5 {[%emt 0:00:03]} 65. Qg3 {[%emt 0:00:03]} Kh6 {[%emt 0:00:03]} 66. Kf6 {[%emt 0:00:01]} Kh7 {[%emt 0:00:01]} 67. Qg7# {[%emt 0:00:02]} 1-0

[Event "Queens Festival Europe 2022"]
[Site "Tornelo"]
[Date "2022.06.19"]
[Round "7.7"]
[White "Maksimovic, Suzana"]
[Black "Machlik, Edit"]
[Result "0-1"]
[ECO "A46"]
[WhiteElo "2145"]
[BlackElo "2084"]
[Annotator "NA RC"]
[PlyCount "78"]
[EventDate "2022.06.19"]
[EventType "swiss"]
[EventCountry "NET"]
[SourceTitle "playchess.com"]
[Source "ChessBase"]
[SourceQuality "1"]
[TimeControl "180+2"]

1. d4 {[%emt 0:00:02]} Nf6 {[%emt 0:00:05]} 2. Bg5 {[%emt 0:00:05]} e6 {[%emt 0:00:03]} 3. Nd2 {[%emt 0:00:03]} h6 {[%emt 0:00:02]} 4. Bh4 {[%emt 0:00:03]} d5 {[%emt 0:00:03]} 5. e3 {[%emt 0:00:03]} c5 {[%emt 0:00:05]} 6. c3 {[%emt 0:00:01]} Nc6 {[%emt 0:00:03]} 7. Ngf3 {[%emt 0:00:04]} Be7 {[%emt 0:00:23]} 8. Bd3 {[%emt 0:00:04]} b6 {[%emt 0:00:12]} 9. O-O {[%emt 0:00:09]} O-O {[%emt 0:00:03]} 10. Qe2 {[%emt 0:00:09]} Bb7 {[%emt 0:00:14]} 11. Rfe1 {[%emt 0:00:09]} Rc8 {[%emt 0:00:12]} 12. Rad1 {[%emt 0:00:19]} Re8 {[%emt 0:00:07]} 13. dxc5 {[%emt 0:00:16]} bxc5 {[%emt 0:00:45]} 14. e4 {[%emt 0:00:10]} Qb6 {[%emt 0:00:38]} 15. e5 {[%emt 0:00:24]} Nd7 {[%emt 0:00:08]} 16. Bxe7 {[%emt 0:00:03]} Rxe7 {[%emt 0:00:02]} 17. Nf1 {[%emt 0:00:25]} c4 {[%emt 0:00:17]} 18. Bb1 {[%emt 0:00:04]} Nc5 {[%emt 0:00:02]} 19. Ng3 {[%emt 0:00:11]} Ree8 {[%emt 0:00:03]} 20. Nh5 {[%emt 0:00:28]} Ne7 {[%emt 0:00:04]} 21. Rd2 {[%emt 0:00:06]} Ne4 {[%emt 0:00:03]} 22. Bxe4 {[%emt 0:00:07]} dxe4 {[%emt 0:00:01]} 23. Nd4 {[%emt 0:00:01]} Nf5 {[%emt 0:00:02]} 24. Ng3 {[%emt 0:00:06]} e3 {[%emt 0:00:06]} 25. fxe3 {[%emt 0:00:11]} Nxg3 {[%emt 0:00:02]} 26. hxg3 {[%emt 0:00:01]} Be4 {[%emt 0:00:01]} 27. Qg4 {[%emt 0:00:04]} Bg6 {[%emt 0:00:08]} 28. Rf2 {[%emt 0:00:02]} Rcd8 {[%emt 0:00:02]} 29. Rf4 {[%emt 0:00:02]} Bh7 {[%emt 0:00:02]} 30. Kh2 {[%emt 0:00:03]} Rf8 {[%emt 0:00:01]} 31. Re2 {[%emt 0:00:03]} Qa6 {[%emt 0:00:02]} 32. a3 {[%emt 0:00:02]} Qb7 {[%emt 0:00:02]} 33. Ref2 {[%emt 0:00:02]} Bg6 {[%emt 0:00:02]} 34. Nxe6 {[%emt 0:00:05]} fxe6 {[%emt 0:00:02]} 35. Qxg6 {[%emt 0:00:01]} Rxf4 {[%emt 0:00:01]} 36. gxf4 {[%emt 0:00:02]} Qe7 {[%emt 0:00:01]} 37. g3 {[%emt 0:00:03]} Rd1 {[%emt 0:00:02]} 38. Qe4 {[%emt 0:00:02]} Ra1 {[%emt 0:00:04]} 39. Qxc4 {[%emt 0:00:02]} Qf7 {[%emt 0:00:01]} 0-1

[Event "Queens Festival Europe 2022"]
[Site "Tornelo"]
[Date "2022.06.19"]
[Round "7.7"]
[White "Arora, Tashika"]
[Black "Rahimli, Izzat"]
[Result "1-0"]
[ECO "A40"]
[WhiteElo "1822"]
[BlackElo "1817"]
[Annotator "NA RC"]
[PlyCount "71"]
[EventDate "2022.06.19"]
[EventType "swiss"]
[EventCountry "NET"]
[SourceTitle "playchess.com"]
[Source "ChessBase"]
[SourceQuality "1"]
[TimeControl "180+2"]

1. d4 {[%emt 0:00:02]} e6 {[%emt 0:00:07]} 2. c4 {[%emt 0:00:03]} Bb4+ {[%emt 0:00:03]} 3. Bd2 {[%emt 0:00:02]} Qe7 {[%emt 0:00:02]} 4. Nf3 {[%emt 0:00:03]} f5 {[%emt 0:00:03]} 5. g3 {[%emt 0:00:03]} b6 {[%emt 0:00:02]} 6. Bg2 {[%emt 0:00:02]} Bb7 {[%emt 0:00:01]} 7. O-O {[%emt 0:00:02]} Nf6 {[%emt 0:00:03]} 8. Bf4 {[%emt 0:00:12]} Bd6 {[%emt 0:00:20]} 9. Bxd6 {[%emt 0:00:12]} Qxd6 {[%emt 0:00:03]} 10. Nc3 {[%emt 0:00:01]} a6 {[%emt 0:00:04]} 11. a3 {[%emt 0:00:04]} O-O {[%emt 0:00:04]} 12. b4 {[%emt 0:00:02]} Qe7 {[%emt 0:00:04]} 13. Rc1 {[%emt 0:00:05]} c5 {[%emt 0:00:10]} 14. bxc5 {[%emt 0:00:09]} bxc5 {[%emt 0:00:04]} 15. Qb3 {[%emt 0:00:06]} Bc6 {[%emt 0:00:15]} 16. d5 {[%emt 0:00:07]} exd5 {[%emt 0:00:25]} 17. cxd5 {[%emt 0:00:02]} Bb5 {[%emt 0:00:04]} 18. Nxb5 {[%emt 0:00:07]} axb5 {[%emt 0:00:03]} 19. d6+ {[%emt 0:00:06]} Qe6 {[%emt 0:00:08]} 20. Qxe6+ {[%emt 0:00:13]} dxe6 {[%emt 0:00:02]} 21. Ng5 {[%emt 0:00:02]} Rxa3 {[%emt 0:00:09]} 22. Nxe6 {[%emt 0:00:01]} Re8 {[%emt 0:00:06]} 23. Nc7 {[%emt 0:00:12]} Rxe2 {[%emt 0:00:08]} 24. Nxb5 {[%emt 0:00:03]} Raa2 {[%emt 0:00:11]} 25. Nc3 {[%emt 0:00:09]} Rad2 {[%emt 0:00:05]} 26. Nxe2 {[%emt 0:00:03]} Rxe2 {[%emt 0:00:02]} 27. Rxc5 {[%emt 0:00:02]} Nbd7 {[%emt 0:00:02]} 28. Rc6 {[%emt 0:00:14]} g6 {[%emt 0:00:11]} 29. h3 {[%emt 0:00:09]} Kf7 {[%emt 0:00:14]} 30. Rd1 {[%emt 0:00:03]} Ke6 {[%emt 0:00:06]} 31. Bf1 {[%emt 0:00:04]} Rb2 {[%emt 0:00:11]} 32. Bc4+ {[%emt 0:00:09]} Ke5 {[%emt 0:00:05]} 33. Bf7 {[%emt 0:00:17]} Ke4 {[%emt 0:00:10]} 34. Rc4+ {[%emt 0:00:10]} Kf3 {[%emt 0:00:05]} 35. Re1 {[%emt 0:00:11]} Rb3 {[%emt 0:00:14]} 36. Rf4# {[%emt 0:00:04]} 1-0

[Event "Queens Festival Europe 2022"]
[Site "Tornelo"]
[Date "2022.06.19"]
[Round "7.7"]
[White "Egger, Stefanie"]
[Black "Vukosavljevic, Tatjana"]
[Result "0-1"]
[ECO "E94"]
[WhiteElo "1700"]
[BlackElo "1758"]
[Annotator "NA RC"]
[PlyCount "70"]
[EventDate "2022.06.19"]
[EventType "swiss"]
[EventCountry "NET"]
[SourceTitle "playchess.com"]
[Source "ChessBase"]
[SourceQuality "1"]
[TimeControl "180+2"]

1. d4 {[%emt 0:00:02]} Nf6 {[%emt 0:00:05]} 2. c4 {[%emt 0:00:02]} g6 {[%emt 0:00:01]} 3. Nc3 {[%emt 0:00:02]} Bg7 {[%emt 0:00:02]} 4. e4 {[%emt 0:00:01]} O-O {[%emt 0:00:01]} 5. Nf3 {[%emt 0:00:03]} d6 {[%emt 0:00:02]} 6. Be2 {[%emt 0:00:11]} Nbd7 {[%emt 0:00:10]} 7. O-O {[%emt 0:00:07]} e5 {[%emt 0:00:09]} 8. d5 {[%emt 0:00:03]} a5 {[%emt 0:00:02]} 9. Be3 {[%emt 0:00:19]} Nh5 {[%emt 0:00:11]} 10. Nd2 {[%emt 0:00:07]} Nc5 {[%emt 0:00:09]} 11. Bxh5 {[%emt 0:00:10]} gxh5 {[%emt 0:00:02]} 12. Qxh5 {[%emt 0:00:02]} Nd3 {[%emt 0:00:01]} 13. b3 {[%emt 0:00:10]} f5 {[%emt 0:00:19]} 14. Bg5 {[%emt 0:00:10]} Qd7 {[%emt 0:00:10]} 15. f3 {[%emt 0:00:07]} Nf4 {[%emt 0:00:23]} 16. Qh4 {[%emt 0:00:19]} Ng6 {[%emt 0:00:33]} 17. Qe1 {[%emt 0:00:11]} f4 {[%emt 0:00:05]} 18. a3 {[%emt 0:00:12]} Qf7 {[%emt 0:00:11]} 19. Bh4 {[%emt 0:00:10]} Nxh4 {[%emt 0:00:04]} 20. Qxh4 {[%emt 0:00:03]} Bf6 {[%emt 0:00:01]} 21. Qf2 {[%emt 0:00:06]} Kh8 {[%emt 0:00:04]} 22. b4 {[%emt 0:00:06]} Rg8 {[%emt 0:00:04]} 23. Kh1 {[%emt 0:00:10]} Qh5 {[%emt 0:00:06]} 24. Ne2 {[%emt 0:00:12]} Bh4 {[%emt 0:00:06]} 25. Qg1 {[%emt 0:00:13]} Bh3 {[%emt 0:00:09]} 26. Rf2 {[%emt 0:00:29]} Bxf2 {[%emt 0:00:03]} 27. Qxf2 {[%emt 0:00:01]} Bxg2+ {[%emt 0:00:02]} 28. Qxg2 {[%emt 0:00:02]} Rxg2 {[%emt 0:00:03]} 29. Kxg2 {[%emt 0:00:02]} axb4 {[%emt 0:00:09]} 30. a4 {[%emt 0:00:03]} Rg8+ {[%emt 0:00:04]} 31. Kh1 {[%emt 0:00:03]} Rg6 {[%emt 0:00:07]} 32. Rf1 {[%emt 0:00:03]} Rh6 {[%emt 0:00:04]} 33. Rf2 {[%emt 0:00:02]} Qh4 {[%emt 0:00:02]} 34. Rg2 {[%emt 0:00:01]} Qe1+ {[%emt 0:00:04]} 35. Ng1 {[%emt 0:00:05]} Rg6 {[%emt 0:00:14]} 0-1

[Event "Queens Festival Europe 2022"]
[Site "Tornelo"]
[Date "2022.06.19"]
[Round "7.7"]
[White "Rahimli, Ulkar"]
[Black "Farzaliyeva, Shams"]
[Result "0-1"]
[ECO "A40"]
[WhiteElo "1268"]
[BlackElo "1219"]
[Annotator "NA RC"]
[PlyCount "134"]
[EventDate "2022.06.19"]
[EventType "swiss"]
[EventCountry "NET"]
[SourceTitle "playchess.com"]
[Source "ChessBase"]
[SourceQuality "1"]
[TimeControl "180+2"]

1. d4 {[%emt 0:00:02]} g6 {[%emt 0:00:05]} 2. Nf3 {[%emt 0:00:03]} Bh6 {[%emt 0:00:01]} 3. Bxh6 {[%emt 0:00:10]} Nxh6 {[%emt 0:00:02]} 4. e3 {[%emt 0:00:01]} d6 {[%emt 0:00:05]} 5. Bd3 {[%emt 0:00:04]} Nc6 {[%emt 0:00:06]} 6. a3 {[%emt 0:00:02]} e5 {[%emt 0:00:04]} 7. Bc4 {[%emt 0:00:14]} O-O {[%emt 0:00:08]} 8. O-O {[%emt 0:00:04]} Nf5 {[%emt 0:00:06]} 9. d5 {[%emt 0:00:11]} Nce7 {[%emt 0:00:03]} 10. e4 {[%emt 0:00:03]} Ng7 {[%emt 0:00:04]} 11. h3 {[%emt 0:00:03]} f5 {[%emt 0:00:05]} 12. Ng5 {[%emt 0:00:08]} h6 {[%emt 0:00:03]} 13. Ne6 {[%emt 0:00:09]} Bxe6 {[%emt 0:00:02]} 14. dxe6 {[%emt 0:00:02]} fxe4 {[%emt 0:00:01]} 15. Qg4 {[%emt 0:00:03]} d5 {[%emt 0:00:03]} 16. Bb3 {[%emt 0:00:11]} Qd6 {[%emt 0:00:04]} 17. Nc3 {[%emt 0:00:05]} c6 {[%emt 0:00:01]} 18. Rad1 {[%emt 0:00:04]} Qxe6 {[%emt 0:00:01]} 19. Qxe6+ {[%emt 0:00:06]} Nxe6 {[%emt 0:00:02]} 20. Nxe4 {[%emt 0:00:03]} Rad8 {[%emt 0:00:08]} 21. Ng3 {[%emt 0:00:08]} Kg7 {[%emt 0:00:03]} 22. Rfe1 {[%emt 0:00:04]} e4 {[%emt 0:00:03]} 23. c4 {[%emt 0:00:07]} Nc5 {[%emt 0:00:05]} 24. Ba2 {[%emt 0:00:06]} Rfe8 {[%emt 0:00:14]} 25. cxd5 {[%emt 0:00:19]} cxd5 {[%emt 0:00:03]} 26. Re2 {[%emt 0:00:15]} Nd3 {[%emt 0:00:19]} 27. Bb1 {[%emt 0:00:05]} Nf4 {[%emt 0:00:05]} 28. Red2 {[%emt 0:00:03]} Nf5 {[%emt 0:00:14]} 29. Nxe4 {[%emt 0:00:13]} Re7 {[%emt 0:00:26]} 30. Nc3 {[%emt 0:00:15]} d4 {[%emt 0:00:05]} 31. Nb5 {[%emt 0:00:02]} Red7 {[%emt 0:00:09]} 32. Nxa7 {[%emt 0:00:16]} Nd6 {[%emt 0:00:13]} 33. Kf1 {[%emt 0:00:06]} Nc4 {[%emt 0:00:07]} 34. Rc2 {[%emt 0:00:02]} Ne5 {[%emt 0:00:03]} 35. Nb5 {[%emt 0:00:03]} d3 {[%emt 0:00:04]} 36. Rc7 {[%emt 0:00:02]} Rxc7 {[%emt 0:00:09]} 37. Nxc7 {[%emt 0:00:03]} Rd7 {[%emt 0:00:01]} 38. Nb5 {[%emt 0:00:04]} Kf6 {[%emt 0:00:02]} 39. f3 {[%emt 0:00:04]} Nc4 {[%emt 0:00:05]} 40. Kf2 {[%emt 0:00:02]} Nxb2 {[%emt 0:00:02]} 41. Nc3 {[%emt 0:00:03]} Nxd1+ {[%emt 0:00:02]} 42. Nxd1 {[%emt 0:00:02]} Ne6 {[%emt 0:00:03]} 43. Ke3 {[%emt 0:00:04]} Nc5 {[%emt 0:00:02]} 44. g4 {[%emt 0:00:03]} Re7+ {[%emt 0:00:04]} 45. Kd2 {[%emt 0:00:04]} Re2+ {[%emt 0:00:04]} 46. Kc3 {[%emt 0:00:03]} Re1 {[%emt 0:00:04]} 47. Kd2 {[%emt 0:00:02]} Re2+ {[%emt 0:00:01]} 48. Kc3 {[%emt 0:00:02]} Rh2 {[%emt 0:00:03]} 49. Bxd3 {[%emt 0:00:03]} Nxd3 {[%emt 0:00:02]} 50. Kxd3 {[%emt 0:00:02]} Rxh3 {[%emt 0:00:01]} 51. Ke4 {[%emt 0:00:01]} Rh1 {[%emt 0:00:02]} 52. Nc3 {[%emt 0:00:02]} Ra1 {[%emt 0:00:02]} 53. Nb5 {[%emt 0:00:02]} h5 {[%emt 0:00:04]} 54. gxh5 {[%emt 0:00:02]} gxh5 {[%emt 0:00:02]} 55. Kf4 {[%emt 0:00:01]} Kg6 {[%emt 0:00:04]} 56. Kg3 {[%emt 0:00:04]} Rb1 {[%emt 0:00:02]} 57. Nd6 {[%emt 0:00:04]} Rb3 {[%emt 0:00:04]} 58. Kf4 {[%emt 0:00:02]} Rxa3 {[%emt 0:00:01]} 59. Nxb7 {[%emt 0:00:02]} Ra4+ {[%emt 0:00:02]} 60. Kg3 {[%emt 0:00:03]} Kg5 {[%emt 0:00:05]} 61. Nc5 {[%emt 0:00:04]} Ra3 {[%emt 0:00:03]} 62. Ne4+ {[%emt 0:00:01]} Kg6 {[%emt 0:00:01]} 63. Kf4 {[%emt 0:00:03]} h4 {[%emt 0:00:02]} 64. Kg4 {[%emt 0:00:01]} h3 {[%emt 0:00:02]} 65. Kxh3 {[%emt 0:00:02]} Rxf3+ {[%emt 0:00:01]} 66. Kg4 {[%emt 0:00:02]} Ra3 {[%emt 0:00:02]} 67. Ng3 {[%emt 0:00:02]} Ra4+ {[%emt 0:00:02]} 0-1

[Event "Queens Festival Europe 2022"]
[Site "Tornelo"]
[Date "2022.06.19"]
[Round "7.8"]
[White "Smith, Olivia"]
[Black "Ayzenberg, Alena"]
[Result "0-1"]
[ECO "C00"]
[WhiteElo "2039"]
[BlackElo "2016"]
[Annotator "NA RC"]
[PlyCount "80"]
[EventDate "2022.06.19"]
[EventType "swiss"]
[EventCountry "NET"]
[SourceTitle "playchess.com"]
[Source "ChessBase"]
[SourceQuality "1"]
[TimeControl "180+2"]

1. e4 {[%emt 0:00:02]} e6 {[%emt 0:00:04]} 2. Qe2 {[%emt 0:00:15]} c5 {[%emt 0:00:04]} 3. Nf3 {[%emt 0:00:02]} Nc6 {[%emt 0:00:03]} 4. g3 {[%emt 0:00:01]} g6 {[%emt 0:00:04]} 5. Bg2 {[%emt 0:00:02]} Bg7 {[%emt 0:00:03]} 6. O-O {[%emt 0:00:01]} Nge7 {[%emt 0:00:02]} 7. c3 {[%emt 0:00:02]} d6 {[%emt 0:00:09]} 8. d3 {[%emt 0:00:01]} O-O {[%emt 0:00:04]} 9. a4 {[%emt 0:00:01]} b6 {[%emt 0:00:12]} 10. Na3 {[%emt 0:00:06]} Qc7 {[%emt 0:00:13]} 11. Nb5 {[%emt 0:00:08]} Qd8 {[%emt 0:00:23]} 12. Bf4 {[%emt 0:00:02]} e5 {[%emt 0:00:02]} 13. Bd2 {[%emt 0:00:20]} a6 {[%emt 0:00:02]} 14. Na3 {[%emt 0:00:03]} Qc7 {[%emt 0:00:20]} 15. Rac1 {[%emt 0:00:07]} Qd7 {[%emt 0:00:25]} 16. Nc4 {[%emt 0:00:22]} Rb8 {[%emt 0:00:06]} 17. Ne3 {[%emt 0:00:04]} b5 {[%emt 0:00:09]} 18. axb5 {[%emt 0:00:14]} axb5 {[%emt 0:00:01]} 19. Nh4 {[%emt 0:00:10]} b4 {[%emt 0:00:11]} 20. f4 {[%emt 0:00:02]} bxc3 {[%emt 0:00:14]} 21. bxc3 {[%emt 0:00:02]} exf4 {[%emt 0:00:17]} 22. gxf4 {[%emt 0:00:03]} f5 {[%emt 0:00:18]} 23. Nf3 {[%emt 0:00:16]} fxe4 {[%emt 0:00:02]} 24. dxe4 {[%emt 0:00:06]} Rxf4 {[%emt 0:00:08]} 25. Nd5 {[%emt 0:00:14]} Nxd5 {[%emt 0:00:04]} 26. exd5 {[%emt 0:00:03]} Rf8 {[%emt 0:00:04]} 27. dxc6 {[%emt 0:00:03]} Qxc6 {[%emt 0:00:01]} 28. Ne5 {[%emt 0:00:09]} Qc7 {[%emt 0:00:03]} 29. Qc4+ {[%emt 0:00:09]} Kh8 {[%emt 0:00:04]} 30. Nf7+ {[%emt 0:00:06]} Kg8 {[%emt 0:00:01]} 31. Nxd6+ {[%emt 0:00:10]} Kh8 {[%emt 0:00:03]} 32. Rxf8+ {[%emt 0:00:09]} Bxf8 {[%emt 0:00:02]} 33. Bf4 {[%emt 0:00:14]} Bxd6 {[%emt 0:00:02]} 34. Bh6 {[%emt 0:00:09]} Be5 {[%emt 0:00:03]} 35. Rf1 {[%emt 0:00:06]} Bf5 {[%emt 0:00:02]} 36. Qd5 {[%emt 0:00:06]} Qd6 {[%emt 0:00:03]} 37. Qf3 {[%emt 0:00:03]} Re8 {[%emt 0:00:03]} 38. Kh1 {[%emt 0:00:01]} Qe6 {[%emt 0:00:02]} 39. Bg5 {[%emt 0:00:04]} Bf6 {[%emt 0:00:02]} 40. Bxf6+ {[%emt 0:00:02]} Qxf6 {[%emt 0:00:01]} 0-1

[Event "Queens Festival Europe 2022"]
[Site "Tornelo"]
[Date "2022.06.19"]
[Round "7.8"]
[White "Shabanaj, Eglantina"]
[Black "Grimaldi, Angela Flavia"]
[Result "1-0"]
[ECO "D35"]
[WhiteElo "1986"]
[BlackElo "1995"]
[Annotator "NA RC"]
[PlyCount "85"]
[EventDate "2022.06.19"]
[EventType "swiss"]
[EventCountry "NET"]
[SourceTitle "playchess.com"]
[Source "ChessBase"]
[SourceQuality "1"]
[TimeControl "180+2"]

1. d4 {[%emt 0:00:26]} d5 {[%emt 0:00:06]} 2. c4 {[%emt 0:00:03]} e6 {[%emt 0:00:02]} 3. Nc3 {[%emt 0:00:03]} Nf6 {[%emt 0:00:02]} 4. Nf3 {[%emt 0:00:04]} Be7 {[%emt 0:00:03]} 5. cxd5 {[%emt 0:00:03]} exd5 {[%emt 0:00:02]} 6. Bg5 {[%emt 0:00:04]} c6 {[%emt 0:00:05]} 7. e3 {[%emt 0:00:10]} Bf5 {[%emt 0:00:03]} 8. Bd3 {[%emt 0:00:03]} Bxd3 {[%emt 0:00:03]} 9. Qxd3 {[%emt 0:00:02]} h6 {[%emt 0:00:03]} 10. Bxf6 {[%emt 0:00:03]} Bxf6 {[%emt 0:00:02]} 11. O-O {[%emt 0:00:01]} O-O {[%emt 0:00:03]} 12. Rfe1 {[%emt 0:00:03]} Na6 {[%emt 0:00:19]} 13. a3 {[%emt 0:00:06]} Nc7 {[%emt 0:00:04]} 14. e4 {[%emt 0:00:04]} dxe4 {[%emt 0:00:03]} 15. Nxe4 {[%emt 0:00:04]} Nd5 {[%emt 0:00:04]} 16. Rad1 {[%emt 0:00:03]} Qb6 {[%emt 0:00:09]} 17. b4 {[%emt 0:00:06]} Rfd8 {[%emt 0:00:06]} 18. Nxf6+ {[%emt 0:00:06]} Nxf6 {[%emt 0:00:00]} 19. Ne5 {[%emt 0:00:03]} a5 {[%emt 0:00:14]} 20. Qc4 {[%emt 0:00:04]} Nd5 {[%emt 0:00:05]} 21. Nd3 {[%emt 0:00:05]} axb4 {[%emt 0:00:04]} 22. axb4 {[%emt 0:00:02]} Ra4 {[%emt 0:00:17]} 23. Rb1 {[%emt 0:00:04]} Rda8 {[%emt 0:00:09]} 24. h3 {[%emt 0:00:04]} Qd8 {[%emt 0:00:16]} 25. Nc5 {[%emt 0:00:06]} b5 {[%emt 0:00:22]} 26. Qc1 {[%emt 0:00:23]} Rxb4 {[%emt 0:00:04]} 27. Rxb4 {[%emt 0:00:07]} Nxb4 {[%emt 0:00:00]} 28. Qf4 {[%emt 0:00:03]} Nd5 {[%emt 0:00:12]} 29. Qf3 {[%emt 0:00:06]} Qf6 {[%emt 0:00:08]} 30. Qd3 {[%emt 0:00:06]} Nf4 {[%emt 0:00:15]} 31. Qe4 {[%emt 0:00:08]} Nd5 {[%emt 0:00:08]} 32. Nd7 {[%emt 0:00:09]} Qg5 {[%emt 0:00:15]} 33. Qc2 {[%emt 0:00:07]} Rc8 {[%emt 0:00:10]} 34. Re5 {[%emt 0:00:03]} Qd8 {[%emt 0:00:04]} 35. Nc5 {[%emt 0:00:09]} Nf6 {[%emt 0:00:02]} 36. Qc3 {[%emt 0:00:06]} Ra8 {[%emt 0:00:04]} 37. Ne4 {[%emt 0:00:13]} Qd7 {[%emt 0:00:04]} 38. Nxf6+ {[%emt 0:00:04]} gxf6 {[%emt 0:00:00]} 39. Rc5 {[%emt 0:00:03]} Rc8 {[%emt 0:00:03]} 40. d5 {[%emt 0:00:02]} Kg7 {[%emt 0:00:02]} 41. dxc6 {[%emt 0:00:03]} Qd1+ {[%emt 0:00:02]} 42. Kh2 {[%emt 0:00:04]} Qd6+ {[%emt 0:00:01]} 43. g3 {[%emt 0:00:02]} 1-0